[Event "Late-Titled-Tuesday-Blitz-April-02-2024"]
[Site "Chess.com"]
[Date "2024.04.02"]
[Round "10"]
[White "Charodej1"]
[Black "PNEPaul"]
[Result "1-0"]
[WhiteElo "2367"]
[BlackElo "1987"]
[TimeControl "180+1"]
[EndTime "15:53:13 PDT"]
[Termination "Charodej1 won by resignation"]

1. d4 {[%clk 0:03:00.9]} 1... a6 {[%clk 0:02:59.4]} 2. e4 {[%clk 0:02:59.3]}
2... d6 {[%clk 0:02:59.3]} 3. Nf3 {[%clk 0:02:57.3]} 3... g6 {[%clk 0:02:59.5]}
4. c3 {[%clk 0:02:55.7]} 4... h6 {[%clk 0:02:59.7]} 5. Bd3 {[%clk 0:02:54]} 5...
Nd7 {[%clk 0:02:59.4]} 6. Qe2 {[%clk 0:02:53.6]} 6... Bg7 {[%clk 0:02:59.2]} 7.
a4 {[%clk 0:02:49.9]} 7... e5 {[%clk 0:02:58.9]} 8. a5 {[%clk 0:02:48.7]} 8...
Ne7 {[%clk 0:02:58.2]} 9. Na3 {[%clk 0:02:48.1]} 9... O-O {[%clk 0:02:57.2]} 10.
Nc4 {[%clk 0:02:38.7]} 10... f5 {[%clk 0:02:52.1]} 11. exf5 {[%clk 0:02:33.8]}
11... gxf5 {[%clk 0:02:51.5]} 12. dxe5 {[%clk 0:02:33.6]} 12... Nxe5 {[%clk
0:02:47.7]} 13. O-O {[%clk 0:02:24.7]} 13... Nxd3 {[%clk 0:02:11.1]} 14. Qxd3
{[%clk 0:02:24.1]} 14... Bd7 {[%clk 0:02:10.6]} 15. Be3 {[%clk 0:02:00.9]} 15...
Bb5 {[%clk 0:02:08.2]} 16. Nd4 {[%clk 0:01:49.7]} 16... d5 {[%clk 0:02:01.7]}
17. Nxb5 {[%clk 0:01:49.4]} 17... axb5 {[%clk 0:01:57.8]} 18. Nd2 {[%clk
0:01:45.5]} 18... c6 {[%clk 0:01:57.4]} 19. Bc5 {[%clk 0:01:44.5]} 19... Re8
{[%clk 0:01:50.2]} 20. Rfe1 {[%clk 0:01:43.9]} 20... Qd7 {[%clk 0:01:50.1]} 21.
Nf3 {[%clk 0:01:37.9]} 21... Ng6 {[%clk 0:01:39.9]} 22. g3 {[%clk 0:01:32.9]}
22... Re4 {[%clk 0:01:38.1]} 23. b4 {[%clk 0:01:05.5]} 23... Rae8 {[%clk
0:01:35.8]} 24. Qd2 {[%clk 0:00:38.5]} 24... Ne5 {[%clk 0:01:08.6]} 25. Nxe5
{[%clk 0:00:34.6]} 25... R4xe5 {[%clk 0:01:03]} 26. Rxe5 {[%clk 0:00:32.8]}
26... Rxe5 {[%clk 0:01:01]} 27. f3 {[%clk 0:00:31.7]} 27... Qe6 {[%clk
0:00:57.9]} 28. Kf2 {[%clk 0:00:30.1]} 28... Bf6 {[%clk 0:00:50.1]} 29. Bd4
{[%clk 0:00:27.7]} 29... Kf7 {[%clk 0:00:44.8]} 30. Bxe5 {[%clk 0:00:25]} 30...
Qxe5 {[%clk 0:00:44.8]} 31. Rc1 {[%clk 0:00:20.6]} 31... d4 {[%clk 0:00:43.2]}
32. cxd4 {[%clk 0:00:18.5]} 32... Qxd4+ {[%clk 0:00:43.2]} 33. Qxd4 {[%clk
0:00:19.2]} 33... Bxd4+ {[%clk 0:00:43.1]} 34. Ke2 {[%clk 0:00:19.9]} 34... Ke6
{[%clk 0:00:35.6]} 35. Kd3 {[%clk 0:00:19.8]} 35... Bb2 {[%clk 0:00:34.1]} 36.
Rc2 {[%clk 0:00:19.4]} 36... Ba3 {[%clk 0:00:33.1]} 37. Kc3 {[%clk 0:00:19]}
37... c5 {[%clk 0:00:27.7]} 38. bxc5 {[%clk 0:00:15.7]} 38... b4+ {[%clk
0:00:27.5]} 39. Kb3 {[%clk 0:00:15.6]} 39... Kd5 {[%clk 0:00:27.3]} 40. g4
{[%clk 0:00:15.5]} 40... fxg4 {[%clk 0:00:26.6]} 41. fxg4 {[%clk 0:00:16.4]}
41... Kc6 {[%clk 0:00:24]} 42. h4 {[%clk 0:00:16.6]} 42... Kb5 {[%clk
0:00:23.7]} 43. g5 {[%clk 0:00:17]} 43... hxg5 {[%clk 0:00:23.2]} 44. hxg5
{[%clk 0:00:17.9]} 44... Kxa5 {[%clk 0:00:23.1]} 45. g6 {[%clk 0:00:18.6]} 1-0

[Event "Late-Titled-Tuesday-Blitz-April-02-2024"]
[Site "Chess.com"]
[Date "2024.04.02"]
[Round "10"]
[White "UK_23"]
[Black "lilylg"]
[Result "1-0"]
[WhiteElo "2402"]
[BlackElo "2221"]
[TimeControl "180+1"]
[EndTime "15:53:18 PDT"]
[Termination "UK_23 won by resignation"]

1. e4 {[%clk 0:03:00.1]} 1... c6 {[%clk 0:02:28.9]} 2. Nc3 {[%clk 0:02:59.4]}
2... d5 {[%clk 0:02:26.2]} 3. Nf3 {[%clk 0:03:00.3]} 3... Bg4 {[%clk 0:02:24.4]}
4. h3 {[%clk 0:03:00.1]} 4... Bxf3 {[%clk 0:02:24.5]} 5. Qxf3 {[%clk 0:02:59.2]}
5... e6 {[%clk 0:02:24]} 6. Be2 {[%clk 0:02:59.6]} 6... Nf6 {[%clk 0:02:23.8]}
7. O-O {[%clk 0:02:59.5]} 7... Nbd7 {[%clk 0:02:23.8]} 8. d4 {[%clk 0:02:57.5]}
8... dxe4 {[%clk 0:02:23]} 9. Nxe4 {[%clk 0:02:58.4]} 9... Nxe4 {[%clk
0:02:23.2]} 10. Qxe4 {[%clk 0:02:59]} 10... Nf6 {[%clk 0:02:23.9]} 11. Qd3
{[%clk 0:02:59.7]} 11... Be7 {[%clk 0:02:19.1]} 12. Rd1 {[%clk 0:03:00.3]} 12...
O-O {[%clk 0:02:19.1]} 13. a4 {[%clk 0:03:00.9]} 13... Qc7 {[%clk 0:02:18.9]}
14. a5 {[%clk 0:03:00.9]} 14... Rfd8 {[%clk 0:02:17.1]} 15. a6 {[%clk
0:03:00.8]} 15... b6 {[%clk 0:02:16.9]} 16. Qf3 {[%clk 0:02:57.8]} 16... Rac8
{[%clk 0:02:14.2]} 17. Bf4 {[%clk 0:02:54.1]} 17... Qd7 {[%clk 0:02:14.4]} 18.
Be5 {[%clk 0:02:50.4]} 18... Qd5 {[%clk 0:02:11.3]} 19. c4 {[%clk 0:02:39.5]}
19... Qxf3 {[%clk 0:02:09.6]} 20. Bxf3 {[%clk 0:02:40.4]} 20... Bd6 {[%clk
0:01:59.3]} 21. Bxf6 {[%clk 0:02:36.9]} 21... gxf6 {[%clk 0:02:00.2]} 22. g3
{[%clk 0:02:25.7]} 22... Be7 {[%clk 0:01:45.3]} 23. Kg2 {[%clk 0:02:25.5]} 23...
f5 {[%clk 0:01:40.6]} 24. d5 {[%clk 0:01:58]} 24... cxd5 {[%clk 0:01:39.6]} 25.
cxd5 {[%clk 0:01:57.9]} 25... Bf6 {[%clk 0:01:36.5]} 26. d6 {[%clk 0:01:38.3]}
26... Bxb2 {[%clk 0:01:26.2]} 27. Rab1 {[%clk 0:01:36.3]} 27... Bf6 {[%clk
0:01:26.5]} 28. Bb7 {[%clk 0:01:34.7]} 28... Rc5 {[%clk 0:01:02.8]} 29. d7
{[%clk 0:01:30.8]} 29... Ra5 {[%clk 0:00:57.8]} 30. Rbc1 {[%clk 0:01:25]} 30...
Rc5 {[%clk 0:00:46.9]} 31. Rxc5 {[%clk 0:01:21.3]} 31... bxc5 {[%clk 0:00:47.8]}
32. Bc8 {[%clk 0:01:19.8]} 32... c4 {[%clk 0:00:39.1]} 33. Rc1 {[%clk
0:01:16.8]} 33... c3 {[%clk 0:00:39]} 34. Kf3 {[%clk 0:01:17.5]} 34... Kf8
{[%clk 0:00:37.1]} 35. Ke3 {[%clk 0:01:16.7]} 35... Ke7 {[%clk 0:00:36.9]} 36.
Kd3 {[%clk 0:01:15.1]} 36... f4 {[%clk 0:00:17]} 37. g4 {[%clk 0:01:09.6]} 37...
h5 {[%clk 0:00:15.1]} 38. f3 {[%clk 0:01:10]} 38... hxg4 {[%clk 0:00:14.9]} 39.
hxg4 {[%clk 0:01:09.2]} 39... Rh8 {[%clk 0:00:15.4]} 40. Rc2 {[%clk 0:01:01.4]}
40... Rh3 {[%clk 0:00:14.4]} 41. Ke4 {[%clk 0:01:01.6]} 41... Rh1 {[%clk
0:00:13.6]} 42. Kxf4 {[%clk 0:01:00]} 42... Rb1 {[%clk 0:00:13]} 43. Ke4 {[%clk
0:00:59.9]} 43... Rb2 {[%clk 0:00:13]} 44. Kd3 {[%clk 0:01:00.4]} 44... Rxc2
{[%clk 0:00:13]} 45. Kxc2 {[%clk 0:01:00.5]} 45... Kd8 {[%clk 0:00:13.6]} 46. f4
{[%clk 0:01:00]} 46... Kc7 {[%clk 0:00:13.9]} 47. g5 {[%clk 0:01:00.1]} 47...
Be7 {[%clk 0:00:14.1]} 48. Kxc3 {[%clk 0:00:59.7]} 48... Kb6 {[%clk 0:00:14]}
49. Kd3 {[%clk 0:00:56.3]} 49... Kc7 {[%clk 0:00:13.9]} 50. Ke4 {[%clk
0:00:56.7]} 50... Bd6 {[%clk 0:00:14.1]} 51. f5 {[%clk 0:00:56]} 51... Ba3
{[%clk 0:00:09.6]} 52. fxe6 {[%clk 0:00:53.3]} 52... fxe6 {[%clk 0:00:07.5]} 53.
Ke5 {[%clk 0:00:53.8]} 53... Bc1 {[%clk 0:00:05]} 54. g6 {[%clk 0:00:53.6]} 1-0

[Event "Late-Titled-Tuesday-Blitz-April-02-2024"]
[Site "Chess.com"]
[Date "2024.04.02"]
[Round "10"]
[White "MaestroCheck"]
[Black "Heliosis11"]
[Result "1-0"]
[WhiteElo "2585"]
[BlackElo "2420"]
[TimeControl "180+1"]
[EndTime "15:53:21 PDT"]
[Termination "MaestroCheck won by resignation"]

1. e4 {[%clk 0:03:00.9]} 1... c5 {[%clk 0:02:59.8]} 2. Nc3 {[%clk 0:03:00.2]}
2... e6 {[%clk 0:02:59.6]} 3. d4 {[%clk 0:03:00.1]} 3... cxd4 {[%clk 0:03:00]}
4. Qxd4 {[%clk 0:03:01]} 4... Nc6 {[%clk 0:03:00.3]} 5. Qe3 {[%clk 0:03:01.5]}
5... Qc7 {[%clk 0:02:53.6]} 6. Qg3 {[%clk 0:02:58.3]} 6... Qxg3 {[%clk
0:02:44.5]} 7. hxg3 {[%clk 0:02:59.2]} 7... Nf6 {[%clk 0:02:41.1]} 8. f3 {[%clk
0:02:57.3]} 8... a6 {[%clk 0:02:41.1]} 9. g4 {[%clk 0:02:52.8]} 9... b5 {[%clk
0:02:30.4]} 10. a3 {[%clk 0:02:52]} 10... Bb7 {[%clk 0:02:24]} 11. Be3 {[%clk
0:02:50.1]} 11... d6 {[%clk 0:02:21.3]} 12. Nge2 {[%clk 0:02:41.6]} 12... Nd7
{[%clk 0:02:21.2]} 13. Kf2 {[%clk 0:02:35.3]} 13... Nde5 {[%clk 0:02:18.8]} 14.
b3 {[%clk 0:02:32.4]} 14... Rc8 {[%clk 0:02:18.3]} 15. Rc1 {[%clk 0:01:52.9]}
15... Be7 {[%clk 0:02:15]} 16. g5 {[%clk 0:01:42.2]} 16... f6 {[%clk 0:01:59.9]}
17. gxf6 {[%clk 0:01:31.6]} 17... Bxf6 {[%clk 0:02:00.8]} 18. Nb1 {[%clk
0:01:22.7]} 18... Kf7 {[%clk 0:01:52.9]} 19. Nd2 {[%clk 0:01:21.2]} 19... Ne7
{[%clk 0:01:52.4]} 20. Nd4 {[%clk 0:01:17.5]} 20... d5 {[%clk 0:01:44.7]} 21.
Be2 {[%clk 0:01:10]} 21... h6 {[%clk 0:01:35.1]} 22. f4 {[%clk 0:01:07.4]} 22...
Nd7 {[%clk 0:01:09.1]} 23. e5 {[%clk 0:01:06.4]} 23... Nxe5 {[%clk 0:01:09.5]}
24. fxe5 {[%clk 0:01:07.3]} 24... Bxe5 {[%clk 0:01:10.4]} 25. Bg4 {[%clk
0:01:01.5]} 25... Bxd4 {[%clk 0:01:04.9]} 26. Bxd4 {[%clk 0:01:01.6]} 26... Nc6
{[%clk 0:01:03.7]} 27. Bh5+ {[%clk 0:00:49.9]} 27... Kg8 {[%clk 0:00:58.1]} 28.
Bb2 {[%clk 0:00:48.8]} 28... Rf8+ {[%clk 0:00:55.7]} 29. Ke2 {[%clk 0:00:48.1]}
29... e5 {[%clk 0:00:47.8]} 30. Nf3 {[%clk 0:00:48.1]} 30... e4 {[%clk
0:00:44.9]} 31. Nd4 {[%clk 0:00:48.7]} 31... Ne5 {[%clk 0:00:31.5]} 32. Ne6
{[%clk 0:00:47.1]} 32... Rf5 {[%clk 0:00:29.5]} 33. g4 {[%clk 0:00:43.7]} 33...
Rf6 {[%clk 0:00:23.1]} 34. Nd8 {[%clk 0:00:36.1]} 34... Bc8 {[%clk 0:00:10.2]}
35. Bxe5 {[%clk 0:00:35.3]} 35... Rf8 {[%clk 0:00:10.6]} 36. Rhf1 {[%clk
0:00:35.1]} 36... Rxd8 {[%clk 0:00:10.7]} 37. Rf7 {[%clk 0:00:35.6]} 37... Rh7
{[%clk 0:00:09.9]} 38. Bg6 {[%clk 0:00:35.2]} 38... Bxg4+ {[%clk 0:00:09.7]} 39.
Ke3 {[%clk 0:00:35.3]} 39... Bh5 {[%clk 0:00:04.2]} 40. Bxh5 {[%clk 0:00:35]}
40... g5 {[%clk 0:00:04.3]} 41. Rxh7 {[%clk 0:00:34.4]} 41... Kxh7 {[%clk
0:00:05.2]} 42. Rf1 {[%clk 0:00:34.4]} 42... Rc8 {[%clk 0:00:05.6]} 43. Rf7+
{[%clk 0:00:34.4]} 43... Kg8 {[%clk 0:00:06.2]} 44. Rg7+ {[%clk 0:00:34.4]}
44... Kf8 {[%clk 0:00:06.8]} 45. c3 {[%clk 0:00:33.1]} 45... b4 {[%clk 0:00:06]}
46. axb4 {[%clk 0:00:32.8]} 46... Rd8 {[%clk 0:00:03.1]} 47. Bd4 {[%clk
0:00:32.4]} 47... Re8 {[%clk 0:00:03.4]} 1-0

[Event "Late-Titled-Tuesday-Blitz-April-02-2024"]
[Site "Chess.com"]
[Date "2024.04.02"]
[Round "10"]
[White "Cambek64"]
[Black "egnfanclub"]
[Result "1-0"]
[WhiteElo "2504"]
[BlackElo "2371"]
[TimeControl "180+1"]
[EndTime "15:53:25 PDT"]
[Termination "Cambek64 won on time"]

1. e4 {[%clk 0:03:00.9]} 1... e5 {[%clk 0:02:59.2]} 2. Nf3 {[%clk 0:02:58.5]}
2... Nc6 {[%clk 0:02:58.9]} 3. Bb5 {[%clk 0:02:57.9]} 3... a6 {[%clk 0:02:59.1]}
4. Bxc6 {[%clk 0:02:56.7]} 4... dxc6 {[%clk 0:02:59.2]} 5. d4 {[%clk 0:02:57.4]}
5... exd4 {[%clk 0:02:59]} 6. Qxd4 {[%clk 0:02:58.2]} 6... Qxd4 {[%clk
0:02:58.6]} 7. Nxd4 {[%clk 0:02:59.1]} 7... Bd7 {[%clk 0:02:59.3]} 8. Be3 {[%clk
0:02:59.6]} 8... O-O-O {[%clk 0:02:59.7]} 9. Nd2 {[%clk 0:03:00.3]} 9... Re8
{[%clk 0:02:58.7]} 10. O-O-O {[%clk 0:02:53.5]} 10... c5 {[%clk 0:02:58.3]} 11.
Ne2 {[%clk 0:02:50.8]} 11... Bc6 {[%clk 0:02:51.4]} 12. Nc3 {[%clk 0:02:43.6]}
12... Ne7 {[%clk 0:02:39.4]} 13. f3 {[%clk 0:02:37.3]} 13... b6 {[%clk
0:02:38.9]} 14. Rhe1 {[%clk 0:02:37.3]} 14... g6 {[%clk 0:02:36.7]} 15. Nc4
{[%clk 0:02:32]} 15... Bg7 {[%clk 0:02:35.2]} 16. Bf4 {[%clk 0:02:32.1]} 16...
f5 {[%clk 0:02:14.1]} 17. exf5 {[%clk 0:02:08.6]} 17... Nxf5 {[%clk 0:02:14.1]}
18. Ne3 {[%clk 0:01:57.5]} 18... Nd4 {[%clk 0:01:58.8]} 19. Ng4 {[%clk
0:01:34.7]} 19... b5 {[%clk 0:01:49.3]} 20. Be5 {[%clk 0:01:32.4]} 20... Rhg8
{[%clk 0:01:31.6]} 21. Bxg7 {[%clk 0:01:30.7]} 21... Rxe1 {[%clk 0:01:31.6]} 22.
Rxe1 {[%clk 0:01:25.3]} 22... Rxg7 {[%clk 0:01:31.8]} 23. Re5 {[%clk 0:01:21.7]}
23... c4 {[%clk 0:01:11.9]} 24. Ne4 {[%clk 0:01:19.1]} 24... h5 {[%clk
0:01:03.9]} 25. Ngf6 {[%clk 0:01:14.6]} 25... Ne2+ {[%clk 0:00:54.5]} 26. Kd2
{[%clk 0:01:12.6]} 26... Nf4 {[%clk 0:00:55.4]} 27. g3 {[%clk 0:01:11.1]} 27...
Nh3 {[%clk 0:00:40.5]} 28. Ke3 {[%clk 0:01:05.2]} 28... Rf7 {[%clk 0:00:24.6]}
29. f4 {[%clk 0:01:00.3]} 29... h4 {[%clk 0:00:11.1]} 30. g4 {[%clk 0:00:52.3]}
30... Bxe4 {[%clk 0:00:11.3]} 31. Nxe4 {[%clk 0:00:47.9]} 31... Rxf4 {[%clk
0:00:11.5]} 32. g5 {[%clk 0:00:39.2]} 32... Rf1 {[%clk 0:00:09.8]} 33. Re8+
{[%clk 0:00:34.3]} 33... Kb7 {[%clk 0:00:07.4]} 34. Rh8 {[%clk 0:00:34]} 34...
Nf4 {[%clk 0:00:06.6]} 35. Kd4 {[%clk 0:00:27.4]} 35... h3 {[%clk 0:00:06.2]}
36. Rh6 {[%clk 0:00:24.1]} 36... Rh1 {[%clk 0:00:04.3]} 37. Ke5 {[%clk
0:00:22.8]} 1-0

[Event "Late-Titled-Tuesday-Blitz-April-02-2024"]
[Site "Chess.com"]
[Date "2024.04.02"]
[Round "10"]
[White "APOKALIPSA13"]
[Black "grandcoach"]
[Result "1-0"]
[WhiteElo "2321"]
[BlackElo "2274"]
[TimeControl "180+1"]
[EndTime "15:53:26 PDT"]
[Termination "APOKALIPSA13 won on time"]

1. e4 {[%clk 0:03:00.8]} 1... c5 {[%clk 0:02:55.6]} 2. Nf3 {[%clk 0:03:00.9]}
2... Nc6 {[%clk 0:02:54.4]} 3. d4 {[%clk 0:03:01.2]} 3... cxd4 {[%clk
0:02:55.1]} 4. Nxd4 {[%clk 0:03:02]} 4... e5 {[%clk 0:02:55.4]} 5. Nxc6 {[%clk
0:03:01.8]} 5... bxc6 {[%clk 0:02:49.2]} 6. Bc4 {[%clk 0:03:00.8]} 6... Nf6
{[%clk 0:02:44.8]} 7. Qe2 {[%clk 0:02:55.6]} 7... d5 {[%clk 0:02:31.1]} 8. exd5
{[%clk 0:02:55.1]} 8... cxd5 {[%clk 0:02:31.8]} 9. Bb5+ {[%clk 0:02:52.8]} 9...
Bd7 {[%clk 0:02:29.3]} 10. Qxe5+ {[%clk 0:02:51.1]} 10... Be7 {[%clk 0:02:28.8]}
11. Bxd7+ {[%clk 0:02:49.8]} 11... Qxd7 {[%clk 0:02:29.3]} 12. O-O {[%clk
0:02:45.4]} 12... O-O {[%clk 0:02:29.3]} 13. Nc3 {[%clk 0:02:34.9]} 13... Bd6
{[%clk 0:02:28.8]} 14. Qd4 {[%clk 0:02:31.5]} 14... Rac8 {[%clk 0:02:21.9]} 15.
h3 {[%clk 0:02:25]} 15... Rc4 {[%clk 0:02:20.3]} 16. Qd3 {[%clk 0:02:24]} 16...
Rfc8 {[%clk 0:02:13.3]} 17. Bg5 {[%clk 0:02:21.2]} 17... Ne4 {[%clk 0:02:07]}
18. Bd2 {[%clk 0:01:57.7]} 18... Nxd2 {[%clk 0:02:02]} 19. Qxd2 {[%clk
0:01:58.6]} 19... Bb4 {[%clk 0:02:02.2]} 20. Qxd5 {[%clk 0:01:56.9]} 20... Qc7
{[%clk 0:01:30.4]} 21. Nb5 {[%clk 0:01:42.7]} 21... Qb6 {[%clk 0:01:24]} 22. c3
{[%clk 0:01:20.9]} 22... R4c5 {[%clk 0:01:21.6]} 23. Qd6 {[%clk 0:01:00.3]}
23... Rxb5 {[%clk 0:01:08]} 24. cxb4 {[%clk 0:00:58.5]} 24... Qxd6 {[%clk
0:01:07]} 25. a3 {[%clk 0:00:57.2]} 25... Qc5 {[%clk 0:01:06.4]} 26. bxc5 {[%clk
0:00:56.4]} 26... Rxb2 {[%clk 0:01:06.9]} 27. Rfc1 {[%clk 0:00:45.9]} 27... Kf8
{[%clk 0:01:00.2]} 28. a4 {[%clk 0:00:42.9]} 28... Ke7 {[%clk 0:00:55.2]} 29.
Ra3 {[%clk 0:00:41.4]} 29... Rd2 {[%clk 0:00:28.5]} 30. a5 {[%clk 0:00:37.3]}
30... Kd7 {[%clk 0:00:21.4]} 31. Rb3 {[%clk 0:00:33.1]} 31... Kc6 {[%clk
0:00:21]} 32. a6 {[%clk 0:00:31]} 32... Rd5 {[%clk 0:00:16.1]} 33. Rb7 {[%clk
0:00:29.2]} 33... Rc7 {[%clk 0:00:16.3]} 34. Rcb1 {[%clk 0:00:21.8]} 34... Rxc5
{[%clk 0:00:14.3]} 35. Rxc7+ {[%clk 0:00:21.4]} 35... Kxc7 {[%clk 0:00:15.2]}
36. Rb7+ {[%clk 0:00:21.2]} 36... Kc6 {[%clk 0:00:13.8]} 37. Rxa7 {[%clk
0:00:20.5]} 37... Ra5 {[%clk 0:00:06.8]} 38. Rxf7 {[%clk 0:00:20.1]} 38... Rxa6
{[%clk 0:00:02.7]} 39. Rxg7 {[%clk 0:00:20.1]} 1-0

[Event "Late-Titled-Tuesday-Blitz-April-02-2024"]
[Site "Chess.com"]
[Date "2024.04.02"]
[Round "10"]
[White "vladgoncharov"]
[Black "Evgeny81"]
[Result "1-0"]
[WhiteElo "2594"]
[BlackElo "2750"]
[TimeControl "180+1"]
[EndTime "15:53:27 PDT"]
[Termination "vladgoncharov won on time"]

1. d4 {[%clk 0:03:00.9]} 1... Nf6 {[%clk 0:02:56]} 2. c4 {[%clk 0:03:00.3]} 2...
g6 {[%clk 0:02:55.4]} 3. Nc3 {[%clk 0:03:00]} 3... Bg7 {[%clk 0:02:55.8]} 4. e4
{[%clk 0:02:59]} 4... d6 {[%clk 0:02:56.2]} 5. h3 {[%clk 0:02:59.3]} 5... O-O
{[%clk 0:02:56.1]} 6. Be3 {[%clk 0:02:59.5]} 6... c5 {[%clk 0:02:51.7]} 7. d5
{[%clk 0:02:51.8]} 7... e6 {[%clk 0:02:49]} 8. Bd3 {[%clk 0:02:49.8]} 8... exd5
{[%clk 0:02:47.8]} 9. exd5 {[%clk 0:02:49.7]} 9... Re8 {[%clk 0:02:46]} 10. Nge2
{[%clk 0:02:49.4]} 10... Rxe3 {[%clk 0:02:41.3]} 11. fxe3 {[%clk 0:02:47.9]}
11... Nbd7 {[%clk 0:02:40.8]} 12. O-O {[%clk 0:02:43.6]} 12... Ne5 {[%clk
0:02:40.9]} 13. Nf4 {[%clk 0:02:43.1]} 13... Bd7 {[%clk 0:02:36.2]} 14. Qd2
{[%clk 0:02:35.5]} 14... Qe7 {[%clk 0:02:35.6]} 15. Rae1 {[%clk 0:02:31.7]}
15... Re8 {[%clk 0:02:35.6]} 16. e4 {[%clk 0:02:18.9]} 16... Bh6 {[%clk
0:02:24.4]} 17. Qd1 {[%clk 0:02:08.7]} 17... Bc8 {[%clk 0:02:17.7]} 18. b3
{[%clk 0:01:59.7]} 18... Bg5 {[%clk 0:02:11.9]} 19. Bc2 {[%clk 0:01:57.3]} 19...
h5 {[%clk 0:02:11.2]} 20. Nd3 {[%clk 0:01:51.1]} 20... Nfd7 {[%clk 0:02:03.5]}
21. Nxe5 {[%clk 0:01:46.3]} 21... Nxe5 {[%clk 0:02:02.5]} 22. Ne2 {[%clk
0:01:45.4]} 22... Be3+ {[%clk 0:01:54.4]} 23. Kh1 {[%clk 0:01:34.2]} 23... Qh4
{[%clk 0:01:52.7]} 24. Ng1 {[%clk 0:01:27.8]} 24... Bf4 {[%clk 0:01:33]} 25.
Rxf4 {[%clk 0:01:17.5]} 25... Qxf4 {[%clk 0:01:33.9]} 26. Rf1 {[%clk 0:01:17.2]}
26... Qg3 {[%clk 0:01:27.9]} 27. Nf3 {[%clk 0:01:08.9]} 27... Kg7 {[%clk
0:01:11.1]} 28. Nxe5 {[%clk 0:01:07.3]} 28... Rxe5 {[%clk 0:01:08]} 29. Rf3
{[%clk 0:01:02.2]} 29... Qg5 {[%clk 0:01:05.7]} 30. Kh2 {[%clk 0:00:59.3]} 30...
Qh4 {[%clk 0:00:51.6]} 31. Qf1 {[%clk 0:00:56.2]} 31... f6 {[%clk 0:00:45.5]}
32. Rf4 {[%clk 0:00:49.9]} 32... Qg5 {[%clk 0:00:44.7]} 33. h4 {[%clk
0:00:49.6]} 33... Qh6 {[%clk 0:00:39.5]} 34. Rxf6 {[%clk 0:00:48.3]} 34... Re7
{[%clk 0:00:37.1]} 35. Rxd6 {[%clk 0:00:46.8]} 35... Rf7 {[%clk 0:00:32.8]} 36.
Qe1 {[%clk 0:00:44.7]} 36... Bg4 {[%clk 0:00:13.4]} 37. Qg3 {[%clk 0:00:40.5]}
37... Qd2 {[%clk 0:00:10.7]} 38. Qe5+ {[%clk 0:00:35.8]} 38... Kh7 {[%clk
0:00:10.2]} 39. Qg5 {[%clk 0:00:18.5]} 39... Qxg5 {[%clk 0:00:02.4]} 40. hxg5
{[%clk 0:00:18.7]} 40... Rf2 {[%clk 0:00:03.2]} 41. Bd3 {[%clk 0:00:19]} 1-0

[Event "Late-Titled-Tuesday-Blitz-April-02-2024"]
[Site "Chess.com"]
[Date "2024.04.02"]
[Round "10"]
[White "ameetghasi100"]
[Black "rdarruda"]
[Result "1-0"]
[WhiteElo "2777"]
[BlackElo "2483"]
[TimeControl "180+1"]
[EndTime "15:53:28 PDT"]
[Termination "ameetghasi100 won on time"]

1. b3 {[%clk 0:03:00.5]} 1... e5 {[%clk 0:02:58.8]} 2. Bb2 {[%clk 0:03:01.4]}
2... Nc6 {[%clk 0:02:59]} 3. e3 {[%clk 0:02:58.9]} 3... Nf6 {[%clk 0:02:59]} 4.
c4 {[%clk 0:02:57.3]} 4... d6 {[%clk 0:02:58]} 5. Nc3 {[%clk 0:02:56.1]} 5...
Be7 {[%clk 0:02:53.1]} 6. h3 {[%clk 0:02:56.4]} 6... O-O {[%clk 0:02:52.4]} 7.
g4 {[%clk 0:02:56.9]} 7... Be6 {[%clk 0:02:51.6]} 8. Bg2 {[%clk 0:02:57.1]} 8...
h6 {[%clk 0:02:51.4]} 9. Nge2 {[%clk 0:02:53.1]} 9... d5 {[%clk 0:02:51.5]} 10.
cxd5 {[%clk 0:02:53]} 10... Nxd5 {[%clk 0:02:52.4]} 11. O-O {[%clk 0:02:53.3]}
11... Re8 {[%clk 0:02:46.4]} 12. a3 {[%clk 0:02:52.1]} 12... Qd7 {[%clk
0:02:43.1]} 13. b4 {[%clk 0:02:51.1]} 13... a6 {[%clk 0:02:42.5]} 14. Ng3 {[%clk
0:02:51]} 14... g6 {[%clk 0:02:40.2]} 15. Qc2 {[%clk 0:02:49]} 15... Rad8 {[%clk
0:02:36.5]} 16. Rad1 {[%clk 0:02:48.6]} 16... Bf8 {[%clk 0:02:28.4]} 17. Nce4
{[%clk 0:02:47.6]} 17... b6 {[%clk 0:02:12.9]} 18. Rc1 {[%clk 0:02:47.1]} 18...
Nce7 {[%clk 0:02:12.5]} 19. Bxe5 {[%clk 0:02:45.8]} 19... f5 {[%clk 0:02:09.3]}
20. Nf6+ {[%clk 0:02:41.6]} 20... Nxf6 {[%clk 0:02:09.3]} 21. Bxf6 {[%clk
0:02:42.5]} 21... fxg4 {[%clk 0:02:08.6]} 22. Bxe7 {[%clk 0:02:42.8]} 22... Qxe7
{[%clk 0:02:07.4]} 23. Qxg6+ {[%clk 0:02:42.9]} 23... Qg7 {[%clk 0:02:07.5]} 24.
Qxg7+ {[%clk 0:02:42.4]} 24... Bxg7 {[%clk 0:02:06.1]} 25. d4 {[%clk 0:02:42.5]}
25... gxh3 {[%clk 0:02:03.7]} 26. Bc6 {[%clk 0:02:42.2]} 26... Rf8 {[%clk
0:02:00.8]} 27. f4 {[%clk 0:02:42.7]} 27... Bg4 {[%clk 0:01:42.4]} 28. Bf3
{[%clk 0:02:35.4]} 28... Bxf3 {[%clk 0:01:36.7]} 29. Rxf3 {[%clk 0:02:36.3]}
29... Rc8 {[%clk 0:01:31.1]} 30. Nh5 {[%clk 0:02:36.1]} 30... Bh8 {[%clk
0:01:24]} 31. Rxh3 {[%clk 0:02:35.5]} 31... c5 {[%clk 0:01:24.1]} 32. bxc5
{[%clk 0:02:35.7]} 32... bxc5 {[%clk 0:01:24.3]} 33. dxc5 {[%clk 0:02:35]} 33...
Rf5 {[%clk 0:01:20.8]} 34. c6 {[%clk 0:02:33.6]} 34... Bb2 {[%clk 0:01:19]} 35.
Rc4 {[%clk 0:02:27.1]} 35... Bxa3 {[%clk 0:01:18.5]} 36. e4 {[%clk 0:02:26.8]}
36... Rc5 {[%clk 0:01:16.6]} 37. Ra4 {[%clk 0:02:13]} 37... Bc1 {[%clk
0:01:11.8]} 38. e5 {[%clk 0:02:09]} 38... R8xc6 {[%clk 0:01:07.6]} 39. Nf6+
{[%clk 0:02:08.8]} 39... Kg7 {[%clk 0:01:07.1]} 40. Rg3+ {[%clk 0:02:00.2]}
40... Kf7 {[%clk 0:01:06.8]} 41. Ne4 {[%clk 0:01:54]} 41... Rd5 {[%clk 0:00:55]}
42. Nd6+ {[%clk 0:01:48.8]} 42... Kf8 {[%clk 0:00:53.8]} 43. Rb4 {[%clk
0:01:44.7]} 43... Rd1+ {[%clk 0:00:32.3]} 44. Kg2 {[%clk 0:01:40.6]} 44... Rc2+
{[%clk 0:00:32.4]} 45. Kh3 {[%clk 0:01:41.1]} 45... Rh1+ {[%clk 0:00:32.3]} 46.
Kg4 {[%clk 0:01:41.5]} 46... Ke7 {[%clk 0:00:32]} 47. Kf5 {[%clk 0:01:34.6]}
47... Kd7 {[%clk 0:00:30.8]} 48. Rd4 {[%clk 0:01:30]} 48... Kc6 {[%clk
0:00:30.2]} 49. e6 {[%clk 0:01:27.6]} 49... Re1 {[%clk 0:00:27.4]} 50. Ne4
{[%clk 0:01:26.8]} 50... Rf1 {[%clk 0:00:20.4]} 51. Nf6 {[%clk 0:01:26.5]} 51...
Rcf2 {[%clk 0:00:18.8]} 52. Nd5 {[%clk 0:01:21.5]} 52... Kc5 {[%clk 0:00:16.6]}
53. Rgd3 {[%clk 0:01:21.7]} 53... Re1 {[%clk 0:00:09.9]} 54. Rd1 {[%clk
0:01:05.8]} 54... Rxd1 {[%clk 0:00:08.9]} 55. Rxd1 {[%clk 0:01:06.7]} 55... Bb2
{[%clk 0:00:05.6]} 56. Re1 {[%clk 0:00:56.6]} 56... Rd2 {[%clk 0:00:02.4]} 57.
Nf6 {[%clk 0:00:55.3]} 57... Bxf6 {[%clk 0:00:01.1]} 58. Kxf6 {[%clk 0:00:55.7]}
1-0